fUST/lending_fUST_20240411
["ID","MTS","AMOUNT","RATE_DAILY","PERIOD"]
[322115744,1712799040289,-500.0,0.00041095,21]
[322115745,1712799040299,-500.0,0.00041095,21]
[322115746,1712799040308,-500.0,0.00041095,21]
[322115747,1712799040318,-500.0,0.00041095,21]
[322115748,1712799040327,-500.0,0.00041095,21]
[322115749,1712799040336,-500.0,0.00041095,21]
[322115750,1712799040345,-500.0,0.00041095,21]
[322115751,1712799040354,-500.0,0.00041095,21]
[322115752,1712799040363,-500.0,0.00041095,21]
[322115753,1712799040372,-500.0,0.00041095,21]
[322115754,1712799040381,-500.0,0.00041095,21]
[322115755,1712799040390,-500.0,0.00041095,21]
[322115756,1712799040399,-500.0,0.00041095,21]
[322115757,1712799040408,-500.0,0.00041095,21]
[322115758,1712799040417,-528.52814067,0.00041095,21]
[322115759,1712799040426,-500.0,0.00041095,21]
[322115760,1712799040435,-500.0,0.00041095,21]
[322115761,1712799040444,-500.79502647,0.00041095,2]
[322115762,1712799040452,-500.0,0.00041095,21]
[322115763,1712799040462,-500.0,0.00041095,21]
[322115764,1712799040471,-500.0,0.00041095,21]
[322115765,1712799040480,-500.0,0.00041095,21]
[322115766,1712799040488,-500.0,0.00041095,21]
[322115767,1712799040497,-500.0,0.00041095,21]
[322115768,1712799040506,-500.0,0.00041095,21]
[322115769,1712799040516,-558.53870528,0.00041095,21]
[322115770,1712799040525,-502.43028548,0.00041095,21]
[322115771,1712799040534,-500.0,0.00041095,21]
[322115772,1712799040543,-500.0,0.00041095,21]
[322115773,1712799040553,-500.0,0.00041095,21]
[322115774,1712799040562,-416.95234756,0.00041095,21]
[322115783,1712799043165,-83.04765244,0.00041095,21]
[322115784,1712799043174,-500.0,0.00041095,21]
[322115785,1712799043183,-482.64307122,0.00041095,21]
[322115795,1712799045968,-338.0,0.00034999,2]
[322115796,1712799045978,-17.35692878,0.00041095,21]
[322115797,1712799045988,-500.0,0.00041095,21]
[322115798,1712799045997,-500.0,0.00041095,21]
[322115799,1712799046007,-151.0,0.00041095,2]
[322115800,1712799046016,-151.0,0.00041095,2]
[322115801,1712799046025,-151.0,0.00041095,2]
[322115802,1712799046035,-500.0,0.00041095,21]
[322115803,1712799046044,-553.86,0.00041095,21]
[322115804,1712799046054,-73.93307122,0.00041095,21]
[322115812,1712800051159,-155.28480069,0.00032,4]
[322115813,1712800051180,-319.91534022,0.00034899,30]
[322115814,1712800051201,-158.54315735,0.000349,2]
[322115815,1712800051224,-733.81791206,0.00035,4]
[322115816,1712800051245,-864.37983473,0.00035,30]
[322115817,1712800051266,-596.36211063,0.00035,2]
[322115818,1712800051286,-169.0719526,0.00035845,2]
[322115819,1712800051311,-158.54315731,0.00036329,2]
[322115820,1712800051333,-205.367316,0.00036491,2]
[322115821,1712800051354,-665.268252,0.00036549,120]
[322115822,1712800051374,-174.950697,0.00036552,2]
[322115823,1712800051396,-3020.86314347,0.00037,2]
[322115824,1712800051418,-158.54315731,0.00037757,2]
[322115825,1712800051440,-168.26070603,0.00038995,2]
[322115826,1712800051461,-158.54315731,0.00039186,2]
[322115827,1712800051483,-400.0,0.00039859,3]
[322115828,1712800051504,-300.0,0.00039859,5]
[322115829,1712800051525,-3964.96262215,0.0003986,2]
[322115830,1712800051546,-37074.63014717,0.00039862,2]
[322115831,1712800051567,-1898.05366499,0.0004,2]
[322115832,1712800148198,-162.020611,0.00027397,2]
[322115850,1712800232022,-162.020611,0.00033486,2]
[322115852,1712800232032,-2114.60420043,0.00037759,2]
[322115854,1712800232041,-319.91534022,0.0003776,30]
[322115856,1712800232051,-596.36211063,0.00037761,2]
[322115858,1712800232061,-150.0,0.00037762,2]
[322115860,1712800232070,-162.020611,0.00039574,2]
[322115862,1712800232080,-502.05613594,0.00039861,2]
[322115864,1712800232089,-400.0,0.00039999,3]
[322115866,1712800232099,-1677.9411862,0.0004,2]
[322115869,1712800238061,-432.88105031,0.0004,2]
[322115891,1712800240078,-4194.48193316,0.0004,2]
[322115899,1712800243326,-1320.8983867,0.0004,2]
[322115900,1712800243337,-153.0,0.00040262,2]
[322115901,1712800243347,-158.54315731,0.00040614,2]
[322115902,1712800243357,-153.0,0.00040652,2]
[322115903,1712800243368,-150.64795539,0.00040684,3]
[322115904,1712800243379,-153.0,0.000409,2]
[322115905,1712800243389,-313.30941796,0.00040994,10]
[322115906,1712800243398,-210.50306535,0.00040995,2]
[322115907,1712800243408,-935.16303498,0.00041,4]
[322115927,1712800246269,-2779.89126843,0.00041093,120]
[322115928,1712800246278,-1042.5648262,0.00041093,120]
[322115929,1712800246289,-188.93309274,0.00041093,4]
[322115930,1712800246299,-155.34932343,0.00041093,4]
[322115931,1712800246310,-155.1806512,0.00041093,2]
[322115932,1712800246319,-362.42995497,0.00041093,4]
[322115933,1712800246328,-2416.69051477,0.00041093,2]
[322115934,1712800246338,-768.43387239,0.00041094,2]
[322115935,1712800246347,-309.0,0.00041095,2]
[322115936,1712800246357,-398.12624103,0.00041095,120]
[322115937,1712800246366,-508.17223042,0.00041095,21]
[322115938,1712800246375,-2449.34736733,0.00041095,4]
[322115939,1712800246385,-245.95461142,0.00041095,21]
[322115940,1712800246394,-500.0,0.00041095,21]
[322115941,1712800246403,-378.27964977,0.00041095,21]
[322115942,1712800246412,-500.0,0.00041095,21]
[322115943,1712800246420,-500.0,0.00041095,21]
[322115944,1712800246430,-507.35814863,0.00041095,21]
[322115945,1712800246439,-506.99408068,0.00041095,21]
[322115946,1712800246448,-507.62225756,0.00041095,21]
[322115947,1712800246457,-500.0,0.00041095,21]
[322115948,1712800246466,-500.0,0.00041095,21]
[322115949,1712800246475,-509.68485973,0.00041095,21]
[322115950,1712800246485,-428.44114347,0.00041095,21]
[322115951,1712800246494,-500.0,0.00041095,21]
[322115952,1712800246504,-506.20772257,0.00041095,21]
[322115953,1712800246513,-506.03015356,0.00041095,21]
[322115954,1712800246522,-500.0,0.00041095,21]
[322115955,1712800246531,-500.0,0.00041095,21]
[322115956,1712800246544,-504.71645888,0.00041095,21]
[322115957,1712800246553,-501.91332949,0.00041095,21]
[322115958,1712800246562,-510.69431862,0.00041095,21]
[322115959,1712800246571,-501.13245163,0.00041095,21]
[322115960,1712800246580,-500.0,0.00041095,21]
[322115961,1712800246589,-500.0,0.00041095,21]
[322115962,1712800246599,-391.66061878,0.00041095,21]
[322115963,1712800246608,-505.90336664,0.00041095,21]
[322115964,1712800246617,-503.60851645,0.00041095,21]
[322115965,1712800246626,-507.38452379,0.00041095,21]
[322115966,1712800246635,-506.36065677,0.00041095,21]
[322115967,1712800246645,-500.0,0.00041095,21]
[322115968,1712800246654,-506.55923473,0.00041095,21]
[322115969,1712800246663,-503.87738455,0.00041095,21]
[322115970,1712800246672,-500.0,0.00041095,21]
[322115971,1712800246681,-500.0,0.00041095,21]
[322115972,1712800246690,-504.37624287,0.00041095,21]
[322115973,1712800246699,-503.94666909,0.00041095,21]
[322115974,1712800246708,-504.49331677,0.00041095,21]
[322115975,1712800246717,-500.0,0.00041095,21]
[322115976,1712800246726,-500.0,0.00041095,21]
[322115977,1712800246735,-508.8723577,0.00041095,21]
[322115978,1712800246744,-500.0,0.00041095,21]
[322115979,1712800246753,-500.0,0.00041095,21]
[322115980,1712800246761,-500.0,0.00041095,21]
[322115981,1712800246770,-512.15117389,0.00041095,21]
[322115982,1712800246779,-500.0,0.00041095,21]
[322115983,1712800246790,-534.62,0.00041095,21]
[322115984,1712800246799,-500.0,0.00041095,21]
[322115985,1712800246808,-500.0,0.00041095,21]
[322115986,1712800246817,-503.97973998,0.00041095,21]
[322115987,1712800246827,-500.0,0.00041095,21]
[322115988,1712800246836,-543.58927934,0.00041095,21]
[322115989,1712800246845,-500.0,0.00041095,21]
[322115990,1712800246855,-500.0,0.00041095,21]
[322115991,1712800246864,-500.0,0.00041095,21]
[322115992,1712800246873,-500.0,0.00041095,21]
[322115993,1712800246882,-871.59,0.00041095,21]
[322115994,1712800246891,-500.0,0.00041095,21]
[322115995,1712800246900,-500.0,0.00041095,21]
[322115996,1712800246910,-502.75836769,0.00041095,21]
[322115997,1712800246919,-500.0,0.00041095,21]
[322115998,1712800246929,-516.4739724,0.00041095,21]
[322115999,1712800246939,-509.33618475,0.00041095,21]
[322116000,1712800246949,-213.85831914,0.00041095,4]
[322116001,1712800246958,-497.69362755,0.00041095,4]
[322116002,1712800246967,-156.17735806,0.00041095,20]
[322116003,1712800246976,-155.37024046,0.00041095,2]
[322116004,1712800246986,-500.0,0.00041095,21]
[322116005,1712800246995,-500.0,0.00041095,21]
[322116006,1712800247004,-162.16403164,0.00041095,4]
[322116007,1712800247013,-500.0,0.00041095,21]
[322116008,1712800247022,-941.87671773,0.00041095,120]
[322116009,1712800247031,-200.0,0.00041095,2]
[322116010,1712800247044,-500.0,0.00041095,21]
[322116011,1712800247053,-500.0,0.00041095,21]
[322116012,1712800247062,-573.29777487,0.00041095,21]
[322116013,1712800247072,-1027.98,0.00041095,21]
[322116014,1712800247081,-500.0,0.00041095,21]
[322116015,1712800247090,-500.0,0.00041095,21]
[322116016,1712800247099,-399.76883865,0.00041095,21]
[322116017,1712800247109,-504.29633114,0.00041095,21]
[322116018,1712800247118,-500.0,0.00041095,21]
[322116019,1712800247128,-565.65845339,0.00041095,21]
[322116020,1712800247138,-500.0,0.00041095,21]
[322116021,1712800247148,-500.0,0.00041095,21]
[322116022,1712800247157,-500.0,0.00041095,21]
[322116023,1712800247167,-500.0,0.00041095,21]
[322116024,1712800247178,-504.5915411,0.00041095,21]
[322116025,1712800247191,-326.57687568,0.00041095,21]
[322116026,1712800247204,-284.51546665,0.00041095,21]
[322116027,1712800247216,-503.85222214,0.00041095,21]
[322116028,1712800247227,-509.65767543,0.00041095,21]
[322116029,1712800247239,-500.0,0.00041095,21]
[322116030,1712800247250,-500.30321452,0.00041095,21]
[322116031,1712800247263,-500.0,0.00041095,21]
[322116032,1712800247273,-510.5739484,0.00041095,21]
[322116033,1712800247284,-500.0,0.00041095,21]
[322116034,1712800247297,-500.0,0.00041095,21]
[322116035,1712800247308,-616.5446563,0.00041095,21]
[322116036,1712800247320,-600.29762728,0.00041095,21]
[322116037,1712800247331,-522.20453104,0.00041095,21]
[322116038,1712800247343,-500.0,0.00041095,21]
[322116039,1712800247354,-500.0,0.00041095,21]
[322116040,1712800247365,-514.33799503,0.00041095,21]
[322116041,1712800247376,-500.0,0.00041095,21]
[322116042,1712800247387,-500.0,0.00041095,21]
[322116043,1712800247398,-504.6097672,0.00041095,21]
[322116044,1712800247408,-431.95157972,0.00041095,21]
[322116045,1712800247418,-504.27784668,0.00041095,21]
[322116046,1712800247429,-500.0,0.00041095,21]
[322116047,1712800247439,-500.0,0.00041095,21]
[322116048,1712800247449,-500.0,0.00041095,21]
[322116049,1712800247459,-506.59970956,0.00041095,21]
[322116050,1712800247472,-500.0,0.00041095,21]
[322116051,1712800247483,-1044.00356945,0.00041168,4]
[322116064,1712801156156,-168.077158,0.00027397,2]
[322116065,1712801156176,-48.7039527,0.00031,2]
[322116066,1712801245089,-271.368684,0.00027397,2]
[322116067,1712801245109,-66.610705,0.00031,2]
[322116068,1712801247094,-1843.68872072,0.00031,2]
[322116069,1712801247118,-157.32818968,0.000327,2]
[322116070,1712801247142,-319.91534022,0.000328,30]
[322116071,1712801247168,-271.368684,0.00033165,2]
[322116072,1712801247193,-498.951189,0.00035616,120]
[322116073,1712801247219,-231.52095798,0.00035833,4]
[322116074,1712801247245,-400.0,0.00035834,2]
[322116075,1712801247275,-157.0,0.00035834,2]
[322116076,1712801247301,-274.14574075,0.0003661,8]
[322116077,1712801247328,-12357.4432423,0.0003671,2]
[322116078,1712801254150,-381.43284223,0.0003671,2]
[322116159,1712801438222,-239.31808476,0.0003461,2]
[322116160,1712801438233,-400.0,0.00035834,2]
[322116161,1712801438241,-478.79249295,0.00035835,60]
[322116189,1712801441188,-4361.53505865,0.00035835,60]
[322116190,1712801441357,-5799.68472685,0.00035835,60]
[322116212,1712801443555,-280.0,0.00035835,2]
[322116213,1712801443564,-1016.97173047,0.00035835,60]
[322116247,1712802427154,-154.87609912,0.00027396,2]
[322116248,1712802427175,-74.06047245,0.00027397,2]
[322116249,1712802445088,-91.87630555,0.00027397,2]
[322116250,1712802445110,-224.312881,0.00027397,2]
[322116251,1712802445129,-334.81081345,0.00028391,2]
[322116253,1712802548179,-7337.41384,0.0002629,2]
[322116254,1712802553128,-300.0,0.00026289,2]
[322116255,1712802553150,-13687.89181821,0.0002629,2]
[322116256,1712802553171,-715.82559801,0.00026291,2]
[322116257,1712802553191,-501.057998,0.00028391,2]
[322116258,1712802553211,-420.0,0.00028918,2]
[322116259,1712802553232,-595.2889854,0.0002981,2]
[322116261,1712802604182,4818.02703725,0.00028916,2]
[322116280,1712802633162,-6597.99999998,0.00028916,2]
[322116507,1712802638488,-7624.98956212,0.00028916,2]
[322116508,1712802638611,-308.45638369,0.00028916,2]
[322116509,1712802638624,-1389.20000096,0.00028916,2]
[322116545,1712802640453,-604.23999984,0.00028916,2]
[322116572,1712803493544,-4000.0,0.00026714,2]
[322116574,1712803638571,-156.85107966,0.00026713,2]
[322116575,1712803638592,-5.16953134,0.00026714,2]
[322116576,1712803643107,-2906.28972012,0.00026714,2]
[322116577,1712803643129,-154.75834759,0.00026716,2]
[322116578,1712803643152,-527.21706534,0.00026816,2]
[322116579,1712803643175,-209.402603,0.00027397,2]
[322116580,1712803643196,-162.020611,0.00027397,2]
[322116581,1712803643218,-154.75834751,0.00028534,2]
[322116582,1712803643242,-300.0,0.00028915,2]
[322116583,1712803643264,-300.0,0.00028915,2]
[322116584,1712803643286,-2622.96714544,0.00028916,2]
[322116585,1712803746108,-351.47804356,0.00026816,2]
[322116586,1712803746128,-258.7099965,0.00026888,2]
[322116587,1712803746151,-1562.53899972,0.00028916,2]
[322116588,1712803746170,-7341.2192056,0.00028916,2]
[322116589,1712803748117,-35.50445517,0.0002981,2]
[322116590,1712803748136,-402.37160141,0.0002999,2]
[322116591,1712803754988,168.077158,0.00027397,2]
[322116592,1712803771201,-41.92227859,0.0002999,2]
[322116593,1712803771222,-400.0,0.00030351,2]
[322116594,1712803771243,-400.0,0.00030351,2]
[322116595,1712803771265,-154.75834751,0.00030352,2]
[322116596,1712803771285,-171.439675,0.00031189,2]
[322116597,1712803771305,-844.528001,0.00031207,2]
[322116598,1712803771324,-620.53967203,0.00031301,2]
[322116599,1712803771348,-8432.4214769,0.00031348,2]
[322116600,1712803771368,-351.47804356,0.00031816,2]
[322116601,1712803771389,-154.75834751,0.00032171,2]
[322116602,1712803771409,-166.666666,0.00032324,2]
[322116603,1712803771431,-175.124739,0.00032628,2]
[322116604,1712803771452,-513.0,0.000327,2]
[322116605,1712803771473,-319.91534022,0.00032838,30]
[322116606,1712803771494,-210.2902023,0.00032881,2]
[322116607,1712803771515,-224.312881,0.00033165,2]
[322116608,1712803771536,-166.666666,0.00033205,2]
[322116609,1712803771557,-560.0,0.00033387,2]
[322116610,1712803771577,-154.75834751,0.00033989,2]
[322116611,1712803771597,-166.666666,0.00034086,2]
[322116612,1712803771618,-162.020611,0.00034703,2]
[322116613,1712803771638,-166.666666,0.00034967,2]
[322116614,1712803771658,-500.0,0.00035499,2]
[322116615,1712803771680,-186.0,0.000355,2]
[322116616,1712803771700,-39055.00884113,0.000355,2]
[322116617,1712803771720,-792.85667093,0.00035516,2]
[322116618,1712803771739,-604.013493,0.00035616,120]
[322116619,1712803771760,-154.75834751,0.00035807,2]
[322116620,1712803771779,-538.67181239,0.00035834,4]
[322116621,1712803771799,-6479.05919287,0.00035835,4]
[322116622,1712803771820,-151.0,0.00035845,2]
[322116623,1712803771840,-220.775652,0.00035845,2]
[322116624,1712803771860,-151.0,0.00035845,2]
[322116625,1712803771879,-7337.41384,0.00035845,4]
[322116626,1712803771900,-166.666666,0.00035849,2]
[322116627,1712803771921,-157.501204,0.00035852,2]
[322116628,1712803771941,-157.501204,0.00035852,2]
[322116629,1712803771962,-151.707028,0.00035852,2]
[322116630,1712803771982,-151.0,0.00035852,2]
[322116631,1712803772002,-151.0,0.00035852,2]
[322116632,1712803772022,-151.0,0.00035852,2]
[322116633,1712803772043,-151.0,0.00035852,2]
[322116634,1712803772066,-688.249975,0.00035852,2]
[322116635,1712803772086,-688.249975,0.00035852,2]
[322116636,1712803772205,-525.7931,0.00035853,2]
[322116637,1712803772226,-525.7931,0.00035853,2]
[322116638,1712803772246,-151.0,0.00035853,2]
[322116639,1712803772268,-151.0,0.00035853,2]
[322116640,1712803772288,-151.0,0.00035853,2]
[322116641,1712803772307,-151.0,0.00035853,2]
[322116642,1712803772328,-151.0,0.00035853,2]
[322116643,1712803772349,-151.0,0.00035853,2]
[322116644,1712803772370,-151.0,0.00035853,2]
[322116645,1712803772392,-151.0,0.00035853,2]
[322116646,1712803772412,-151.0,0.00035853,2]
[322116647,1712803772435,-155.772126,0.00035853,2]
[322116648,1712803772456,-235.965918,0.00035853,2]
[322116649,1712803772475,-235.965918,0.00035853,2]
[322116650,1712803772495,-155.048341,0.00035853,2]
[322116651,1712803772516,-151.0,0.00035853,2]
[322116652,1712803772536,-151.0,0.00035853,2]
[322116653,1712803772556,-151.0,0.00035853,2]
[322116654,1712803772575,-266.066531,0.00035853,2]
[322116655,1712803772595,-151.0,0.00035853,2]
[322116656,1712803772614,-151.0,0.00035853,2]
[322116657,1712803772634,-556.348752,0.00035853,2]
[322116658,1712803772653,-556.348752,0.00035853,2]
[322116659,1712803772676,-556.348752,0.00035853,2]
[322116660,1712803772696,-556.348752,0.00035853,2]
[322116661,1712803772716,-214.934204,0.00035853,2]
[322116662,1712803772736,-214.934204,0.00035853,2]
[322116663,1712803772757,-214.934204,0.00035853,2]
[322116664,1712803772777,-151.0,0.00035853,2]
[322116665,1712803772799,-214.934204,0.00035853,2]
[322116666,1712803772820,-151.0,0.00035853,2]
[322116667,1712803772842,-151.0,0.00035853,2]
[322116668,1712803772863,-157.501204,0.00035853,2]
[322116669,1712803772884,-157.501204,0.00035853,2]
[322116670,1712803772904,-151.0,0.00035853,2]
[322116671,1712803772927,-151.0,0.00035853,2]
[322116672,1712803772948,-151.0,0.00035853,2]
[322116673,1712803772970,-126.26844012,0.00035853,2]
[322116819,1712803838588,-125.8975084,0.00035851,2]
[322116870,1712803844003,-274.1024916,0.00035851,2]
[322116871,1712803844014,-212.369326,0.00035852,2]
[322116872,1712803844026,-151.973146,0.00035852,2]
[322116873,1712803844036,-212.369326,0.00035852,2]
[322116874,1712803844046,-151.0,0.00035852,2]
[322116875,1712803844057,-473.21379,0.00035852,2]
[322116876,1712803844066,-473.21379,0.00035852,2]
[322116877,1712803844075,-10701.30280866,0.00035852,60]
[322116878,1712803844084,-24.73155988,0.00035853,2]
[322116879,1712803844094,-688.249975,0.00035853,2]
[322116880,1712803844103,-688.249975,0.00035853,2]
[322116881,1712803844112,-212.369326,0.00035853,2]
[322116882,1712803844122,-212.369326,0.00035853,2]
[322116883,1712803844131,-151.0,0.00035853,2]
[322116884,1712803844140,-473.21379,0.00035853,2]
[322116885,1712803844150,-473.21379,0.00035853,2]
[322116886,1712803844159,-2063.45473805,0.00036709,4]
[322116887,1712803844169,-190.5596983,0.0003671,60]
[322116888,1712803844179,-287.82282929,0.0003671,4]
[322116889,1712803844190,-166.666666,0.0003673,2]
[322116890,1712803844200,-351.47804356,0.00036816,2]
[322116891,1712803844210,-268.0,0.00037,2]
[322116892,1712803844223,-2114.60420043,0.00037,2]
[322116893,1712803844234,-792.85667089,0.00037023,2]
[322116894,1712803844243,-166.22814113,0.00037065,7]
[322116895,1712803844253,-6.13535297,0.00037625,2]
[322116896,1712803844268,-148.62299454,0.00037625,2]
[322116897,1712803844277,-157.501204,0.00037671,2]
[322116898,1712803844287,-157.501204,0.00037671,2]
[322116899,1712803844297,-151.0,0.00037671,2]
[322116900,1712803844306,-151.0,0.00037671,2]
[322116901,1712803844316,-151.0,0.00037671,2]
[322116902,1712803844326,-151.0,0.00037671,2]
[322116903,1712803844335,-688.249975,0.00037671,2]
[322116904,1712803844344,-688.249975,0.00037671,2]
[322116905,1712803844353,-212.369326,0.00037671,2]
[322116906,1712803844366,-212.369326,0.00037671,2]
[322116907,1712803844375,-151.0,0.00037671,2]
[322116908,1712803844385,-473.21379,0.00037671,2]
[322116909,1712803844394,-473.21379,0.00037671,2]
[322116910,1712803844405,-268.0,0.00037671,2]
[322116911,1712803844415,-374.0,0.00037803,2]
[322116912,1712803844424,-166.22814113,0.00037803,7]
[322116913,1712803844436,-165.936778,0.00038356,2]
[322116914,1712803844447,-792.85667089,0.0003853,2]
[322116915,1712803844456,-166.22814113,0.00038697,7]
[322116916,1712803844469,-166.22814113,0.00038867,7]
[322116917,1712803844479,-271.368684,0.00038933,2]
[322116918,1712803844488,-224.312881,0.00038933,2]
[322116919,1712803844498,-268.0,0.00039267,14]
[322116920,1712803844507,-560.0,0.00039436,3]
[322116921,1712803844517,-154.75834751,0.00039443,2]
[322116922,1712803844526,-247.4929664,0.00039977,30]
[322116923,1712803844535,-547.84882457,0.00039978,4]
[322116924,1712803844544,-156.86721143,0.00039978,4]
[322116925,1712803844555,-157.93329421,0.00039978,4]
[322116926,1712803844564,-254.1247624,0.00039978,2]
[322116927,1712803844573,-159.19908401,0.00039978,4]
[322116928,1712803844583,-2130.37416263,0.00039978,4]
[322116929,1712803844592,-1872.8527453,0.00039978,4]
[322116930,1712803844601,-152.497267,0.00039978,2]
[322116931,1712803844610,-151.570489,0.00039978,2]
[322116932,1712803844619,-151.0,0.00039978,2]
[322116933,1712803844629,-151.0,0.00039978,2]
[322116934,1712803844638,-151.0,0.00039978,2]
[322116935,1712803844647,-154.711615,0.00039978,2]
[322116936,1712803844657,-151.0,0.00039978,2]
[322116937,1712803844666,-151.0,0.00039978,2]
[322116938,1712803844676,-151.0,0.00039978,2]
[322116939,1712803844685,-151.0,0.00039978,2]
[322116940,1712803844694,-151.0,0.00039978,2]
[322116941,1712803844703,-152.299952,0.00039978,2]
[322116942,1712803844713,-151.0,0.00039978,2]
[322116943,1712803844725,-151.0,0.00039978,2]
[322116944,1712803844735,-151.0,0.00039978,2]
[322116945,1712803844745,-556.348752,0.00039978,2]
[322116946,1712803844755,-556.348752,0.00039978,2]
[322116947,1712803844764,-556.348752,0.00039978,2]
[322116948,1712803844774,-556.348752,0.00039978,2]
[322116949,1712803844784,-556.348752,0.00039978,2]
[322116950,1712803844794,-556.348752,0.00039978,2]
[322116951,1712803844803,-214.934204,0.00039978,2]
[322116952,1712803844813,-214.934204,0.00039978,2]
[322116953,1712803844822,-214.934204,0.00039978,2]
[322116954,1712803844833,-214.934204,0.00039978,2]
[322116955,1712803844843,-151.0,0.00039978,2]
[322116956,1712803844852,-214.934204,0.00039978,2]
[322116957,1712803844861,-164.98822,0.00039978,2]
[322116958,1712803844871,-214.934204,0.00039978,2]
[322116959,1712803844880,-151.0,0.00039978,2]
[322116960,1712803844890,-154.018839,0.00039978,2]
[322116961,1712803844900,-157.501204,0.00039978,2]
[322116962,1712803844909,-157.501204,0.00039978,2]
[322116963,1712803844918,-157.501204,0.00039978,2]
[322116964,1712803844928,-157.501204,0.00039978,2]
[322116965,1712803844937,-157.501204,0.00039978,2]
[322116966,1712803844946,-157.501204,0.00039978,2]
[322116967,1712803844956,-151.0,0.00039978,2]
[322116968,1712803844967,-180.763782,0.00039978,2]
[322116969,1712803844976,-151.0,0.00039978,2]
[322116970,1712803844986,-151.0,0.00039978,2]
[322116971,1712803844995,-163.703386,0.00039978,2]
[322116972,1712803845004,-151.0,0.00039978,2]
[322116973,1712803845014,-151.0,0.00039978,2]
[322116974,1712803845023,-151.0,0.00039978,2]
[322116975,1712803845032,-151.0,0.00039978,2]
[322116976,1712803845041,-151.0,0.00039978,2]
[322116977,1712803845050,-275.460006,0.00039978,2]
[322116978,1712803845060,-688.249975,0.00039978,2]
[322116979,1712803845069,-688.249975,0.00039978,2]
[322116980,1712803845078,-688.249975,0.00039978,2]
[322116981,1712803845088,-688.249975,0.00039978,2]
[322116982,1712803845097,-688.249975,0.00039978,2]
[322116983,1712803845106,-688.249975,0.00039978,2]
[322116984,1712803845116,-212.369326,0.00039978,2]
[322116985,1712803845125,-212.369326,0.00039978,2]
[322116986,1712803845135,-212.369326,0.00039978,2]
[322116987,1712803845144,-212.369326,0.00039978,2]
[322116988,1712803845154,-212.369326,0.00039978,2]
[322116989,1712803845163,-212.369326,0.00039978,2]
[322116990,1712803845173,-151.0,0.00039978,2]
[322116991,1712803845182,-151.0,0.00039978,2]
[322116992,1712803845191,-151.0,0.00039978,2]
[322116993,1712803845201,-473.21379,0.00039978,2]
[322116994,1712803845210,-473.21379,0.00039978,2]
[322116995,1712803845220,-473.21379,0.00039978,2]
[322116996,1712803845230,-473.21379,0.00039978,2]
[322116997,1712803845239,-473.21379,0.00039978,2]
[322116998,1712803845248,-473.21379,0.00039978,2]
[322116999,1712803845258,-155.50005752,0.00039979,4]
[322117000,1712803845267,-1544.65078814,0.00039979,4]
[322117001,1712803845277,-151.0,0.00039979,2]
[322117002,1712803845287,-151.0,0.00039979,2]
[322117003,1712803845297,-157.501204,0.00039979,2]
[322117004,1712803845306,-157.501204,0.00039979,2]
[322117005,1712803845316,-151.0,0.00039979,2]
[322117006,1712803845325,-688.249975,0.00039979,2]
[322117007,1712803845334,-688.249975,0.00039979,2]
[322117008,1712803845343,-212.369326,0.00039979,2]
[322117009,1712803845353,-212.369326,0.00039979,2]
[322117010,1712803845366,-151.0,0.00039979,2]
[322117011,1712803845375,-473.21379,0.00039979,2]
[322117012,1712803845387,-473.21379,0.00039979,2]
[322117013,1712803845398,-22809.20108206,0.0003998,10]
[322117021,1712803846686,-7190.79891794,0.0003998,10]
[322117022,1712803846695,-151.0,0.0003998,2]
[322117023,1712803846705,-151.0,0.0003998,2]
[322117024,1712803846715,-151.0,0.0003998,2]